Cogmind - Beta 17 @@@ ROGUE MODE // 2026.07.05 @ 13:21:34 Player: tuuli Result: Destroyed by YI-UF0 with YI-UF0's Doublenader Performance ------------- Evolutions (1) 500 Regions Visited (3) 600 Robots Destroyed (24) 120 Value Destroyed (368) 368 Prototype IDs (1) 20 Alien Tech Used (0) 0 Bonus (0) 0 TOTAL SCORE: 1608 Bonus ------- None Cogmind --------- Core Integrity 0/400 Matter 327/500 Energy 99/100 System Corruption 0% Temperature Cool (0) Movement Core (200) Ox3 Location -9/Mines Parts ------- > --- POWER (1) -------- (None) > --- PROPULSION (2) --- (None) > --- UTILITY (2) ------ Small Storage Unit High-capacity Matter Pod > --- WEAPON (4) ------- Mini Grenade Launcher > --- INVENTORY (8) ---- Light Ion Engine Peak State ------------ > --- POWER ------------ Light Ion Engine > --- PROPULSION ------- Light Treads Light Treads > --- UTILITY ---------- Small Storage Unit Improved Targeting Computer > --- WEAPON ----------- Mini Grenade Launcher Mini Grenade Launcher Mini Grenade Launcher Mini Grenade Launcher > --- INVENTORY -------- Light Ion Engine Light Treads [Rating: 14] Favorites ----------- Power Light Ion Engine Engine Light Ion Engine Propulsion Light Treads Treads Light Treads Utility Small Storage Unit Storage Small Storage Unit Processor Improved Targeting Computer Weapon Mini Grenade Launcher Energy Gun EM Pulse Gun Ballistic Gun Improved Assault Rifle Launcher Mini Grenade Launcher Build | -11 -10 -9 -9 ------- Run | Yrd Mat Mat Min Slots Evolved 2 | . . 2 . Power . | . . . . Propulsion . | . . . . Utility . | . . . . Weapon 2 | . . 2 . Parts Attached 17 | 6 4 2 5 Power 3 | 1 1 . 1 Engine 3 | 1 1 . 1 Core . | . . . . Reactor . | . . . . Propulsion 3 | 2 . . 1 Treads 3 | 2 . . 1 Leg . | . . . . Wheel . | . . . . Hover . | . . . . Flight . | . . . . Utility 3 | 1 1 . 1 Device . | . . . . Storage 2 | 1 . . 1 Processor 1 | . 1 . . Hackware . | . . . . Protection . | . . . . Artifact . | . . . . Weapon 8 | 2 2 2 2 Energy Gun 2 | 2 . . . Energy Cannon . | . . . . Ballistic Gun 1 | . . . 1 Ballistic Cannon . | . . . . Launcher 5 | . 2 2 1 Special Weapon . | . . . . Impact Weapon . | . . . . Slashing Weapon . | . . . . Piercing Weapon . | . . . . Special Melee Weapon . | . . . . Unidentified Prototypes 1 | . . . 1 Parts Lost 9 | . . . 9 Power 1 | . . . 1 Propulsion 3 | . . . 3 Utility . | . . . . Weapon 5 | . . . 5 Highest Loss Streak 4 | . . . 4 To Critical Strikes . | . . . . Average Backups 2 | 1 3 2 1 Power 1 | . 1 1 1 Propulsion . | . . 1 . Utility . | . . . . Weapon . | . 1 . . Tool/Special . | . . . . Unused Backups 5 | . 3 . 2 Power 1 | . . . 1 Propulsion 2 | . 2 . . Utility 1 | . . . 1 Weapon 1 | . 1 . . Tool/Special . | . . . . Average Slot Usage (%) 88 | . 93 99 71 Engine 9 | . 14 11 4 Treads 19 | . 28 22 7 Storage 13 | . 14 11 16 Processor 8 | . 7 11 6 Energy Gun 4 | . 12 . . Ballistic Gun 1 | . . . 5 Launcher 30 | . 15 43 33 Peak Build Rating 14 | 6 10 14 14 Average Rating 10 | 4 8 13 10 On Entrance 7 | . 6 10 14 Avg Prop Armor Cover (%) . | . . . . Naked Turns . | . . . . Heaviest Build 15 | 14 14 12 15 Greatest Support 40 | 40 40 40 40 Greatest Overweight (x) 4 | . . . 4 Average Overweight (x) . | . . . 1 Largest Inventory Capacity 8 | 8 8 8 8 Average Capacity 7 | 7 8 8 8 Most Carried 7 | 4 7 3 3 Average Carried 2 | 2 3 2 1 Final Capacity 8 | 8 8 8 8 Final Carried 4 | 4 4 3 1 Class Distribution -------------------- 56% | Bomber 43% | Mutant Dominant Class ---------------- Mutant | -10/Materials Bomber | -9/Materials Bomber | -9/Mines Resources | -11 -10 -9 -9 ----------- Run | Yrd Mat Mat Min Matter Collected 631 | 219 70 10 332 Remotely . | . . . . Salvage Created 319 | . 188 72 59 Parts 45 | . 17 13 15 Haulers Intercepted 1 | . 1 . . Recyclers Shooed 1 | . 1 . . Parts Field Recycled . | . . . . Retrieved Matter . | . . . . Parts Self-Destructed . | . . . . Prevented . | . . . . Parts Restored . | . . . . Kills | -11 -10 -9 -9 ------- Run | Yrd Mat Mat Min Combat Hostiles Destroyed 17 | . 5 5 7 Guns 2 | . 2 . . AOE 15 | . 3 5 7 Classes Destroyed 8 | . 6 1 1 Worker 1 | . . . 1 Builder 2 | . 1 1 . Hauler 1 | . 1 . . Recycler 1 | . 1 . . Watcher 2 | . 1 1 . Swarmer 13 | . 2 4 7 Grunt 3 | . 3 . . Sentry 1 | . . 1 . Best Kill Streak 7 | . 5 7 4 Combat Bots Only 5 | . 2 5 4 Max Kills in Single Turn 4 | . 2 4 3 Gunslinging . | . . . . Exploded 4 | . 1 4 3 Melee . | . . . . Uniques/NPCs Destroyed . | . . . . Combat | -11 -10 -9 -9 -------- Run | Yrd Mat Mat Min Hostile Shots Fired 164 | . 56 8 100 Missed 34 | . 12 2 20 Hits 130 | . 44 6 80 Projectile 130 | . 44 6 80 AOE 15 | . . . 15 Critical Strikes 1 | . . . 1 Damage Taken 1515 | . 446 81 988 Core 513 | . 112 . 401 Absorbed by Shields . | . . . . Core Remaining (%) 77 | 100 55 . . Volleys Fired 20 | . 11 3 6 Largest 4 | . 2 4 4 Hottest 120 | . 90 120 120 Shots Fired 49 | . 20 12 17 Gun 15 | . 12 . 3 Cannon . | . . . . Launcher 34 | . 8 12 14 Special . | . . . . Kinetic 3 | . . . 3 Thermal 5 | . 5 . . Explosive 34 | . 8 12 14 Electromagnetic 7 | . 7 . . Robot Hit Streak 5 | . 4 5 1 Robot Miss Streak 3 | . 3 . 1 Penetration Max . | . . . . Secondary Targets 1 | . 1 . . Max Gunslinging Chain 1 | . 1 . . Shots Hit Robots 12 | . 10 1 1 Core Hits 32 | . 12 12 8 Critical Kills . | . . . . Critical Parts Destroyed . | . . . . Critical Strikes . | . . . . Melee Attacks . | . . . . Impact . | . . . . Slashing . | . . . . Piercing . | . . . . Sneak Attacks . | . . . . Combat Hostiles . | . . . . Follow-up Attacks . | . . . . Damage Inflicted 1537 | . 690 396 451 Guns 106 | . 106 . . Cannons . | . . . . Explosions 1427 | . 580 396 451 Melee . | . . . . Ramming 4 | . 4 . . Kinetic . | . . . . Thermal 196 | . 196 . . Explosive 1281 | . 434 396 451 Electromagnetic 56 | . 56 . . Impact . | . . . . Slashing . | . . . . Piercing . | . . . . Highest Corruption . | . . . . Average Corruption . | . . . . Corruption Purged . | . . . . Corruption Blocked . | . . . . Overload Shots . | . . . . Overflow Damage 36 | . 19 . 17 Projectiles . | . . . . Explosions 36 | . 19 . 17 Melee . | . . . . Knockbacks . | . . . . Impact . | . . . . Kinetic . | . . . . Secondary . | . . . . Self-Inflicted Damage 62 | . . . 62 Shots 3 | . . . 3 Rammed . | . . . . Targets Rammed 1 | . 1 . . Kicked . | . . . . Crushed 1 | . 1 . . Highest Temperature 120 | . 120 51 54 Average Temperature 36 | . 43 27 29 Received Heat Transfer 165 | . 156 9 . Siege Activations . | . . . . Martial Activations . | . . . . Shielding Activations . | . . . . Robots Disrupted . | . . . . Combat Hostiles . | . . . . Robots Corrupted . | . . . . Combat Hostiles . | . . . . Parts Fried . | . . . . Impact Corruptions . | . . . . Robots Melted . | . . . . Combat Hostiles . | . . . . Parts Melted . | . . . . Heat Transferred 248 | . 248 . . Parts Sabotaged . | . . . . Parts Stolen . | . . . . Parts Stripped . | . . . . Power Chain Reactions . | . . . . Alert | -11 -10 -9 -9 ------- Run | Yrd Mat Mat Min Maximum Alert Level 1 | . 1 . . Low Security (%) 95 | 100 84 100 100 Level 1 4 | . 15 . . Level 2 . | . . . . Level 3 . | . . . . Level 4 . | . . . . Level 5 . | . . . . High Security . | . . . . Max Security . | . . . . Peak Influence 214 | . 214 184 180 Initial 76 | . . 76 60 Average 93 | . 104 81 125 Influence Increases 702 | . 281 188 233 Destroy 0b10 Robot/C 340 | . 100 100 140 Destroy 0b10 Robot/NC 35 | . 20 10 5 Destroy Leader 66 | . 24 22 20 Disable Machine 60 | . 45 15 . Destroy Structure 171 | . 77 41 53 Partial Spotted 15 | . 15 . . Lose Combat Pursuer 15 | . . . 15 Influence Decreases 599 | . 100 215 284 Entered New Map 199 | . . 105 94 Time Decay 310 | . 100 110 100 Lost Part 90 | . . . 90 Squads Dispatched 2 | . 2 . . Investigation 1 | . 1 . . Extermination . | . . . . Reinforcement 1 | . 1 . . Assault . | . . . . Garrison . | . . . . Intercept . | . . . . Searches Triggered . | . . . . Construction Impeded . | . . . . Haulers Reinforced . | . . . . Active Scanning Responses . | . . . . Cargo Convoy Interrupts . | . . . . Stealth | -11 -10 -9 -9 --------- Run | Yrd Mat Mat Min Distress Signals 3 | . 1 2 . Communications Jammed . | . . . . Distress Signals . | . . . . Times Spotted 28 | . 11 8 9 Peak Tracking Total 8 | . 3 8 4 Tactical Retreats 1 | . . . 1 Traps | -11 -10 -9 -9 ------- Run | Yrd Mat Mat Min Traps Triggered . | . . . . Indirectly . | . . . . Trap Hack Attempts . | . . . . Triggered . | . . . . Disarmed 4 | . 4 . . Reprogrammed . | . . . . Reused . | . . . . Traps Extracted . | . . . . Installed . | . . . . Triggered . | . . . . Machines | -11 -10 -9 -9 ---------- Run | Yrd Mat Mat Min Machines Disabled 4 | . 3 1 . Max in Single Turn 3 | . 3 1 . Machines Repaired . | . . . . Machines Dismantled . | . . . . Machines Sabotaged . | . . . . Overloaded Fab Kills . | . . . . Hacking | -11 -10 -9 -9 --------- Run | Yrd Mat Mat Min Machines Accessed 3 | . 2 1 . Terminals 3 | . 2 1 . Fabricators . | . . . . Repair Stations . | . . . . Recycling Units . | . . . . Scanalyzers . | . . . . Garrison Access . | . . . . Total Hacks 5 | . 4 1 . Successful 2 | . 1 1 . Failed 3 | . 3 . . Catastrophic 1 | . 1 . . Database Lockouts . | . . . . Manual . | . . . . Terminals 5 | . 4 1 . Fabricators . | . . . . Repair Stations . | . . . . Recycling Units . | . . . . Scanalyzers . | . . . . Garrison Access . | . . . . Terminal Hacks 2 | . 1 1 . Record 1 | . . 1 . Disarm Traps 1 | . 1 . . Fabricator Hacks . | . . . . Repair Station Hacks . | . . . . Recycling Unit Hacks . | . . . . Scanalyzer . | . . . . Garrison Access Hacks . | . . . . Unauthorized Hacks . | . . . . Terminals . | . . . . Fabricators . | . . . . Repair Stations . | . . . . Recycling Units . | . . . . Scanalyzers . | . . . . Garrison Access . | . . . . Data Cores Recovered . | . . . . Used . | . . . . Hacking Detections 2 | . 2 . . Full Trace Events 1 | . 1 . . Feedback Events . | . . . . Feedback Blocked . | . . . . Robot Schematics Acquired . | . . . . Robots Built . | . . . . Authchips . | . . . . Time . | . . . . Total Robot Build Rating . | . . . . Part Schematics Acquired . | . . . . Parts Built . | . . . . Authchips . | . . . . Time . | . . . . Total Part Build Rating . | . . . . Part Studies Acquired . | . . . . Parts Repaired . | . . . . Time . | . . . . Parts Recycled . | . . . . Recycled Matter . | . . . . Retrieved Matter . | . . . . Retrieved Components . | . . . . Parts Scanalyzed . | . . . . Part Schematics Acquired . | . . . . Parts Damaged . | . . . . Bothacking | -11 -10 -9 -9 ------------ Run | Yrd Mat Mat Min Used RIF Installer . | . . . . Robots Hacked . | . . . . Non-combat . | . . . . Combat . | . . . . Robot Hacks Applied . | . . . . Relay Couplers Released . | . . . . Fabnet Peak Effective % . | . . . . Robots Rewired . | . . . . Allies Hacked . | . . . . Hacks Repelled . | . . . . Allies | -11 -10 -9 -9 -------- Run | Yrd Mat Mat Min Total Allies . | . . . . Largest Group . | . . . . Highest-Rated Group . | . . . . Highest-Rated Ally . | . . . . Total Orders . | . . . . Ally Attacks . | . . . . Total Damage . | . . . . Kills . | . . . . Allies Corrupted . | . . . . Allies Melted . | . . . . Intel | -11 -10 -9 -9 ------- Run | Yrd Mat Mat Min Active Infowar (turns) . | . . . . Robot Analysis Total . | . . . . Derelict Logs Recovered . | . . . . Drone Launches . | . . . . Drone Recoveries . | . . . . Exploration | -11 -10 -9 -9 ------------- Run | Yrd Mat Mat Min Turns Passed 729 | 74 226 220 209 Spaces Moved 381 | 45 112 129 95 Core 68 | 12 . . 56 Treads 313 | 33 112 129 39 Legs . | . . . . Wheels . | . . . . Hover . | . . . . Flight . | . . . . Fastest Speed 50 | 50 160 160 150 Average Speed 164 | 130 160 160 190 Slowest Speed 250 | 160 160 160 250 Overloaded Moves . | . . . . Propulsion Burnouts . | . . . . Robots Hopped . | . . . . Potential Cave-ins 2 | . . . 2 Cave-ins Triggered . | . . . . Exploration Rate (%) 21 | 4 27 26 30 Regions Visited 3 Branch Regions 1 Pre-discovered Areas . | . . . . Known Exits Taken . | . . . . Unknown Exits Taken 3 | 1 1 1 . Scrap Searched . | . . . . Spaces Dug . | . . . . Terrain Destroyed 270 | . 109 48 113 Melee . | . . . . Projectile . | . . . . AOE 270 | . 109 48 113 Terrain Rammed . | . . . . Walls Destroyed . | . . . . Machines Disabled . | . . . . Actions | -11 -10 -9 -9 --------- Run | Yrd Mat Mat Min Total 447 | 60 140 135 112 Wait 1 | . . 1 . Move 378 | 44 111 128 95 Hop . | . . . . Pick Up 22 | 10 7 1 4 Fast Attach . | . . . . Attach 12 | 6 1 2 3 Detach . | . . . . Swap 5 | . 3 . 2 Drop 8 | . 6 . 2 Fire 20 | . 11 3 6 Melee . | . . . . Ram . | . . . . Kick . | . . . . Crush 1 | . 1 . . Escape Stasis . | . . . . Rewire . | . . . . Trap . | . . . . Miscellaneous . | . . . . Route ------- -11/Scrapyard -10/Materials -9/Materials -9/Mines (discovered 1 exit: [*Mat]) History --------- Turn | Location | Event 3 | -11/Scrapyard | Discovered new exit (range 15) 75 | -11/Scrapyard | Entered Materials 288 | -10/Materials | Discovered new exit (range 9) 301 | -10/Materials | Entered another Materials area 301 | -9/Materials | Evolved 2 slots: Weapon x2 502 | -9/Materials | Discovered new exit (range 13) 521 | -9/Materials | Entered Mines 527 | -9/Mines | Met a Derelict bent on vengeance 605 | -9/Mines | Build established: Bomber 624 | -9/Mines | Discovered new exit (range 11) 626 | -9/Mines | Lost 4 parts (1p2n1w) 713 | -9/Mines | Core integrity fell below 50% 725 | -9/Mines | Core integrity fell below 20% 730 | -9/Mines | Destroyed by YI-UF0 with YI-UF0's Doublenader Last Messages --------------- K-01 Serf collects debris. The unstable cave ceiling collapses. U-05 Engineer builds a Wall. K-01 Serf collects debris. Open spaces previously occupied by now-destroyed walls and earth have a slight glow to them. Consecutive moves through these unstable areas may cause a cave-in, but only if doing so for extended periods. Tunneling a short distance between rooms is safe unless the area was destabilized by an explosion. K-01 Serf collects debris. The unstable cave ceiling collapses. K-01 Serf destroyed. YI-UF0: "KAPOW!" Mni. Grenade Launcher destroyed. The unstable cave ceiling collapses. Imp. Assault Rifle destroyed. Mni. Grenade Launcher destroyed. The unstable cave ceiling collapses. Acquired Mni. Grenade Launcher. The unstable cave ceiling collapses. Map ----- +----------------------------------------------------+ | ?????????????????????????????????????????????????? | | ?????????????????????????????????????????????????? | | ?????????????????????????????????????????????????? | | ?????????????????????????????????????????????????? | | ?????????????????????????????????????????????????? | | ?????????????????????????????????????????????????? | | ?????????????????????????????????????????????????? | | ?????????????????????????????????????????????????? | | ?????????????????????????????????????????????????? | | ?????????????????????????????????????????????????? | | ?????????????????????????????????????????????????? | | ?????????????????????????????????????????????????? | | ?????????????????????????????????????????????????? | | ?????????????????????????????????????????????????? | | ?????????????????????????????????????????????????? | | ???????????? ????????????????????????????????????? | | ???????????? ?????????????????????????????###?## | | ??????????? ????????????????????????????# ?? | | ??????????? #??????????????????????????# #??? | | ??????????? #########????????????????# #??? | | ??????????# # # ##????????###????# #??? | | ???????????# #????????# ##### #### | | ????????????# #???????# | | ???????????# %# ###??????# ### ## # | | ??????????# #?##???? ????# ## # | | ?????????# @ ### ????? ??### ## # | | ????????? $ # ## #?????? ### # ## # | | ???????????# # # g # #??????# # # ## # | | ???????????# # #?????## # # $ | | ?????????? [ # ## #?????# ## #### | | ?????????? # ## #???#### # # ##? | | ??????????# ####! ## #??## # # # ## | | ???????????? ????### ## ##?# ## # | | ???????????? ???????# ### < # | | ????????????????????# ##### ## ## # | | ???????????????????? ####???# ##### ! | | ???????????????????? ???????# ##???## ! ! | | ??????????????????? ???????# #?????# ! | | ?????????????????? ???????# #?????# ! | | ?????????????????? ???????## ##?????# | | ????????????????? ??????????#####??????# | | ????????????????# ? ?????????????????????####### | | ????????????????## ??????????????????????????????? | | ?????????????????????????????????????????????????? | | ?????????????????????????????????????????????????? | | ?????????????????????????????????????????????????? | | ?????????????????????????????????????????????????? | | ?????????????????????????????????????????????????? | | ?????????????????????????????????????????????????? | | ?????????????????????????????????????????????????? | +----------------------------------------------------+ Best States ------------- Heat Dissipation 28 Energy Generation 10 Energy Capacity 250 Matter Stores 360 Matter Capacity 500 Sight Range 16 Terrain Scan Density 10 Evasion (%) 50 Targeting Accuracy 6 Recoil Reduction 2 Item Schematics ----------------- None Robot Schematics ------------------ None Fabricated ------------ Nothing Repaired ---------- Nothing Studied --------- None Alien Tech Used ----------------- None Achievements -------------- Loot Pinata Oops Remodeling Resistances Are Futile Challenges ------------ None Game ------ Seed ProtonZeronetBuckler Manual? 0 Play Time 00:15:21 Cumulative 1.7 hours Start 2026.07.05 @ 13:07:11 End 2026.07.05 @ 13:21:34 Sessions 1 Manual Loads 0 Difficulty Rogue Special Mode None Game No. 3 Rogue 2 Adventurer 1 Explorer 0 Win Type - Total 0 Types 0/0/0/0/0/0/0/0/0/0 Lore% 1 Gallery% 3 Achievement% 5 Wizard Run 0 Options --------- Layout 0 ASCII 0 Keyboard 0 Movement Mouse Keybinds 0 Fullscreen 2 Font 18/SmallcapsGlow Map View 38x25 Zoom Use 99% Tactical HUD 0 Map Filters NONE Filters NONE Steam 1 RUN: addbd7e3-77c1-4640-9319-2a8105b9a192